bitfinex/quotes_BTCUSD_20240620
["timestamp","ask_amount","ask_price","bid_price","bid_amount"]
[1718913731206,0.004,65217.0,65215.0,0.001]
[1718913731405,0.02061037,65216.0,65215.0,0.001]
[1718913732156,0.02061037,65216.0,65210.0,0.000946]
[1718913732157,0.0641,65214.0,65210.0,0.000946]
[1718913732357,0.13811259,65212.0,65210.0,0.000946]
[1718913732601,0.15537546,65213.0,65210.0,0.000946]
[1718913733034,0.08530104,65214.0,65210.0,0.000946]
[1718913733035,0.15537546,65212.0,65210.0,0.000946]
[1718913733461,0.15537546,65211.0,65210.0,0.000946]
[1718913733977,0.08530104,65214.0,65210.0,0.000946]
[1718913734186,0.15546091,65211.0,65210.0,0.000946]
[1718913734397,0.15546091,65212.0,65210.0,0.000946]
[1718913735513,0.15546091,65211.0,65210.0,0.000946]
[1718913736047,0.1795149,65211.0,65210.0,0.000946]
[1718913736459,0.02405399,65211.0,65210.0,0.000946]
[1718913742183,0.03405399,65211.0,65210.0,0.000946]
[1718913742383,0.07357146,65211.0,65210.0,0.000946]
[1718913743947,0.02055399,65211.0,65210.0,0.000946]
[1718913744399,0.02047505,65211.0,65210.0,0.000946]
[1718913744600,0.03047505,65211.0,65210.0,0.000946]
[1718913745377,0.02047505,65211.0,65210.0,0.000946]
[1718913747262,0.03047505,65211.0,65210.0,0.000946]
[1718913748426,0.06807673,65211.0,65210.0,0.000946]
[1718913748626,0.03047505,65211.0,65210.0,0.000946]
[1718913749772,0.02047505,65211.0,65210.0,0.000946]
[1718913750501,0.03047505,65211.0,65210.0,0.000946]
[1718913750708,0.02047505,65211.0,65210.0,0.000946]
[1718913750934,0.03047505,65211.0,65210.0,0.000946]
[1718913751272,0.02047505,65211.0,65210.0,0.000946]
[1718913752499,0.02047505,65211.0,65210.0,0.10411615]
[1718913752865,0.02047505,65211.0,65210.0,0.17185356]
[1718913753047,0.02047505,65211.0,65210.0,0.24655356]
[1718913753340,0.15852198,65211.0,65210.0,0.24655356]
[1718913753493,0.15852198,65211.0,65210.0,0.17185356]
[1718913753705,0.15852198,65211.0,65210.0,0.24655356]
[1718913754374,0.15852198,65211.0,65210.0,0.17185356]
[1718913754571,0.15852329,65211.0,65210.0,0.17185356]
[1718913754742,0.15852329,65211.0,65210.0,0.24955356]
[1718913755948,0.02047505,65211.0,65210.0,0.25355356]
[1718913758723,0.02047505,65211.0,65210.0,0.40611468]
[1718913760206,0.02047505,65211.0,65210.0,0.32144453]
[1718913760394,0.02047505,65211.0,65210.0,0.33141468]
[1718913761294,0.02047505,65211.0,65210.0,0.44231468]
[1718913761579,0.13550608,65211.0,65210.0,0.51962757]
[1718913761780,0.13636593,65211.0,65210.0,0.51962757]
[1718913762336,0.13636504,65211.0,65210.0,0.51962757]
[1718913763781,0.02133505,65211.0,65210.0,0.51962757]
[1718913765419,0.11335472,65211.0,65210.0,0.51962757]
[1718913765860,0.02133505,65211.0,65210.0,0.51962757]
[1718913766062,0.11335418,65211.0,65210.0,0.51962757]
[1718913766460,0.11335418,65211.0,65210.0,1.42194057]
[1718913766661,0.11335418,65211.0,65210.0,1.49664057]
[1718913767259,0.02133505,65211.0,65210.0,1.49664057]
[1718913768751,0.11334997,65211.0,65210.0,1.49664057]
[1718913770059,0.02133505,65211.0,65210.0,1.49664057]
[1718913770307,0.11334699,65211.0,65210.0,1.49664057]
[1718913770466,0.09287225,65211.0,65210.0,1.49664057]
[1718913771759,0.00086,65211.0,65210.0,1.49664057]
[1718913772266,0.09287162,65211.0,65210.0,1.49664057]
[1718913772596,0.09286931,65211.0,65210.0,1.49664057]
[1718913772811,0.00086,65211.0,65210.0,1.49664057]
[1718913773012,0.09286992,65211.0,65210.0,1.49664057]
[1718913773219,0.00086,65211.0,65210.0,1.49664057]
[1718913773933,0.11587164,65211.0,65210.0,1.49664057]
[1718913774311,0.00086,65211.0,65210.0,1.49664057]
[1718913776340,0.09286803,65211.0,65210.0,1.49664057]
[1718913776909,0.00086,65211.0,65210.0,1.49664057]
[1718913778200,0.09286601,65211.0,65210.0,1.49664057]
[1718913779359,0.00086,65211.0,65210.0,1.49664057]
[1718913780586,0.08714172,65211.0,65210.0,0.984959]
[1718913780820,0.37384172,65211.0,65210.0,0.984959]
[1718913780986,0.37384172,65211.0,65210.0,0.910259]
[1718913781212,0.44854172,65211.0,65210.0,0.910259]
[1718913781414,0.37226,65211.0,65210.0,0.910259]
[1718913781853,0.37226,65211.0,65210.0,0.907259]
[1718913782256,0.37326,65211.0,65210.0,0.907259]
[1718913782457,0.37326,65211.0,65210.0,0.903259]
[1718913782870,0.37726,65211.0,65210.0,0.903259]
[1718913783504,0.43422209,65211.0,65210.0,0.903259]
[1718913785329,0.46200241,65211.0,65210.0,0.903259]
[1718913786136,0.61726003,65211.0,65210.0,0.903259]
[1718913786895,0.66200241,65211.0,65210.0,0.903259]
[1718913787041,0.66200241,65211.0,65210.0,0.89283774]
[1718913787240,0.46200241,65211.0,65210.0,0.89283774]
[1718913787480,0.38730241,65211.0,65210.0,0.89283774]
[1718913787705,0.46200241,65211.0,65210.0,0.89283774]
[1718913788110,0.66200241,65211.0,65210.0,0.89283774]
[1718913788276,0.46200241,65211.0,65210.0,0.88483774]
[1718913788678,0.66200241,65211.0,65210.0,0.88301788]
[1718913789823,0.66200241,65211.0,65210.0,0.88026932]
[1718913791414,0.66200241,65211.0,65210.0,0.87161932]
[1718913791614,0.46200241,65211.0,65210.0,0.86331932]
[1718913791791,0.46200241,65211.0,65210.0,0.86008932]
[1718913791993,0.66200241,65211.0,65210.0,0.86008932]
[1718913792855,0.64124901,65211.0,65210.0,0.86008932]
[1718913793063,0.66424901,65211.0,65210.0,0.86008932]
[1718913793269,0.81681013,65211.0,65210.0,0.82793932]
[1718913793598,0.81681013,65211.0,65210.0,0.79984932]
[1718913793882,0.81681013,65211.0,65210.0,0.76279932]
[1718913794089,0.81281013,65211.0,65210.0,0.74171932]
[1718913794293,0.81281013,65211.0,65210.0,0.72573932]
[1718913794502,0.61181013,65211.0,65210.0,0.68264532]
[1718913794735,0.61267013,65211.0,65210.0,0.67450532]
[1718913794919,0.61367013,65211.0,65210.0,0.67550532]
[1718913795226,0.81367013,65211.0,65210.0,0.67550532]
[1718913795359,0.81267013,65211.0,65210.0,0.67450532]
[1718913795583,0.81367013,65211.0,65210.0,0.67550532]
[1718913796064,0.54697013,65211.0,65210.0,0.67650532]
[1718913796263,0.61367013,65211.0,65210.0,0.67550532]
[1718913796489,0.62167013,65211.0,65210.0,0.67650532]
[1718913796886,0.33744692,65211.0,65210.0,0.67650532]
[1718913797089,0.13764032,65211.0,65210.0,0.67650532]
[1718913798140,0.13664032,65211.0,65210.0,0.67550532]
[1718913798348,0.27448529,65211.0,65210.0,0.67550532]
[1718913798553,0.28048529,65211.0,65210.0,0.67650532]
[1718913798994,0.27448529,65211.0,65210.0,0.67550532]
[1718913799306,0.13464032,65211.0,65210.0,0.67550532]
[1718913799507,0.14164032,65211.0,65210.0,0.67650532]
[1718913799723,0.27248529,65211.0,65210.0,0.67550532]
[1718913799924,0.27228529,65211.0,65210.0,0.67550532]
[1718913800145,0.31771458,65211.0,65210.0,0.67650532]
[1718913800352,0.31071458,65211.0,65210.0,0.67550532]
[1718913800556,0.2722809,65211.0,65210.0,0.67550532]
[1718913800803,0.2702809,65211.0,65210.0,0.67450532]
[1718913800958,0.2662809,65211.0,65210.0,0.67450532]
[1718913801168,0.13244032,65211.0,65210.0,0.67450532]
[1718913801584,0.12844032,65211.0,65210.0,0.67450532]
[1718913802476,0.01186,65211.0,65210.0,0.88400532]
[1718913802666,0.12671716,65211.0,65210.0,0.88400532]
[1718913802864,0.00586,65211.0,65210.0,0.88400532]
[1718913802991,0.12671383,65211.0,65210.0,0.88400532]
[1718913803388,0.01186,65211.0,65210.0,0.88400532]
[1718913803648,0.13271383,65211.0,65210.0,0.88400532]
[1718913803883,0.12771383,65211.0,65210.0,0.88400532]
[1718913804083,0.11571383,65211.0,65210.0,0.88400532]
[1718913804254,0.12071383,65211.0,65210.0,0.88400532]
[1718913804630,0.11571383,65211.0,65210.0,0.88400532]
[1718913805352,0.11572019,65211.0,65210.0,0.88400532]
[1718913805568,0.00086,65211.0,65210.0,0.88400532]
[1718913805735,0.11572019,65211.0,65210.0,0.88400532]
[1718913806341,0.11572079,65211.0,65210.0,0.88400532]
[1718913807200,0.11572079,65211.0,65210.0,0.95174273]
[1718913807371,0.11572462,65211.0,65210.0,0.95174273]
[1718913808904,0.11572462,65211.0,65210.0,0.95274273]
[1718913809552,0.00086,65211.0,65210.0,0.95374273]
[1718913809722,0.11572987,65211.0,65210.0,0.95274273]
[1718913810120,0.11572987,65211.0,65210.0,0.95474273]
[1718913810327,0.00086,65211.0,65210.0,0.95374273]
[1718913810522,0.00086,65211.0,65210.0,0.95574273]
[1718913813756,0.02736442,65211.0,65210.0,0.95574273]
[1718913813979,0.02736442,65211.0,65210.0,0.88800532]
[1718913815986,0.02736442,65211.0,65210.0,0.67850532]
[1718913818671,0.02736442,65211.0,65210.0,0.74624273]
[1718913818672,0.00086,65211.0,65210.0,0.74624273]
[1718913824354,0.00086,65211.0,65210.0,0.76621288]
[1718913824579,0.00086,65211.0,65210.0,0.74624273]
[1718913824784,0.00086,65211.0,65210.0,0.76621288]
[1718913825892,0.00086,65211.0,65210.0,0.99608689]
[1718913826095,0.11584372,65211.0,65210.0,1.27038689]
[1718913826312,0.00086,65211.0,65210.0,1.27038689]
[1718913828307,0.09282759,65211.0,65210.0,1.27038689]
[1718913830009,0.00086,65211.0,65210.0,1.27038689]
[1718913830217,0.09282281,65211.0,65210.0,1.27038689]
[1718913831003,0.09282281,65211.0,65210.0,1.19568689]
[1718913831255,0.09282281,65211.0,65210.0,1.27038689]
[1718913831492,0.00086,65211.0,65210.0,1.27038689]
[1718913831646,0.09281483,65211.0,65210.0,1.27038689]
[1718913833662,0.00086,65211.0,65210.0,1.27038689]
[1718913834565,0.06982468,65211.0,65210.0,1.27038689]
[1718913835006,0.00086,65211.0,65210.0,1.27038689]
[1718913835209,0.06704556,65220.0,65217.0,0.06773741]
[1718913835631,0.12826452,65224.0,65217.0,0.08770756]
[1718913836508,0.006,65220.0,65217.0,0.08870756]
[1718913836755,0.006,65220.0,65217.0,0.08970756]
[1718913836969,0.00786,65223.0,65217.0,0.08870756]
[1718913837173,0.01386,65223.0,65217.0,0.08970756]
[1718913837595,0.00686,65223.0,65217.0,0.08770756]
[1718913837862,0.00086,65223.0,65217.0,0.08770756]
[1718913838330,0.03648118,65223.0,65217.0,0.08770756]
[1718913839042,0.011,65220.0,65217.0,0.08870756]
[1718913839491,0.004,65220.0,65217.0,0.08770756]
[1718913839688,0.03648118,65223.0,65217.0,0.08770756]
[1718913839856,0.04948118,65223.0,65217.0,0.08970756]
[1718913840078,0.04248118,65223.0,65217.0,0.08870756]
[1718913840376,0.004,65220.0,65218.0,0.0922]
[1718913841341,0.14199061,65220.0,65218.0,0.0922]
[1718913841991,0.14202212,65220.0,65218.0,0.0922]
[1718913842214,0.14202212,65220.0,65217.0,0.06873741]
[1718913842436,0.13802212,65218.0,65217.0,0.06773741]
[1718913843110,0.13802212,65218.0,65217.0,0.06873741]
[1718913843488,0.13802212,65218.0,65217.0,0.06773741]
[1718913843664,0.03648118,65223.0,65217.0,0.06568985]
[1718913843862,0.14208164,65218.0,65217.0,0.06568985]
[1718913844418,0.14209063,65218.0,65217.0,0.06568985]
[1718913844564,0.002,65218.0,65217.0,0.06568985]
[1718913844974,0.14008867,65218.0,65217.0,0.06568985]
[1718913845325,0.14008867,65218.0,65217.0,0.08566]
[1718913845639,0.002,65218.0,65217.0,0.08566]
[1718913846144,0.002,65218.0,65217.0,0.08666]
[1718913846565,0.002,65218.0,65217.0,0.08566]
[1718913846986,0.004,65218.0,65217.0,0.08566]
[1718913847392,0.14210205,65218.0,65217.0,0.08566]
[1718913848378,0.004,65218.0,65217.0,0.08566]
[1718913850536,0.004,65218.0,65217.0,0.06568985]
[1718913852313,0.1421088,65218.0,65217.0,0.06568985]
[1718913853786,0.1421088,65218.0,65214.0,0.06568985]
[1718913853988,0.1421088,65218.0,65213.0,0.06568985]
[1718913853989,0.0747,65215.0,65213.0,0.06568985]
[1718913854120,0.2128088,65215.0,65213.0,0.06568985]
[1718913854320,0.1381088,65214.0,65213.0,0.06568985]
[1718913854550,0.0747,65215.0,65213.0,0.06568985]
[1718913855122,0.11858179,65215.0,65213.0,0.06568985]
[1718913855326,0.04388179,65215.0,65213.0,0.06568985]
[1718913855874,0.0679,65217.0,65213.0,0.06568985]
[1718913856579,0.0679,65217.0,65213.0,0.06768985]
[1718913857019,0.0679,65217.0,65213.0,0.06568985]
[1718913858133,0.06876,65217.0,65213.0,0.06568985]
[1718913858341,0.06876,65217.0,65211.0,0.07731289]
[1718913858553,0.13813531,65213.0,65211.0,0.07731289]
[1718913859317,0.11460296,65218.0,65211.0,0.07731289]
[1718913859874,0.11460296,65218.0,65211.0,0.08231289]
[1718913860289,0.03990296,65218.0,65211.0,0.08231289]
[1718913860530,0.03990296,65218.0,65211.0,0.07731289]
[1718913860732,0.03990296,65218.0,65210.0,0.000946]
[1718913860733,0.03990296,65218.0,65210.0,0.07825889]
[1718913860935,0.12060296,65218.0,65210.0,0.14394874]
[1718913861151,0.12560296,65218.0,65210.0,0.14394874]
[1718913861557,0.12560296,65218.0,65213.0,0.673528]
[1718913861905,0.0807,65218.0,65213.0,0.673528]
[1718913862239,0.0747,65218.0,65213.0,0.673528]
[1718913862671,0.0807,65218.0,65213.0,0.673528]
[1718913862827,0.0747,65218.0,65213.0,0.673528]
[1718913863040,0.0797,65218.0,65213.0,0.673528]
[1718913863242,0.0857,65218.0,65213.0,0.673528]
[1718913863558,0.0807,65218.0,65213.0,0.673528]
[1718913863985,0.0857,65218.0,65213.0,0.673528]
[1718913867667,0.1322,65218.0,65213.0,0.673528]
[1718913867872,0.15542432,65217.0,65213.0,0.673528]
[1718913868040,0.0747,65215.0,65213.0,0.673528]
[1718913869449,0.0767,65215.0,65213.0,0.673528]
[1718913871327,0.0787,65215.0,65213.0,0.673528]
[1718913872271,0.004,65215.0,65213.0,0.673528]
[1718913872470,0.02491718,65220.0,65213.0,0.673528]
[1718913872680,0.22726112,65217.0,65213.0,0.673528]
[1718913872889,0.023,65216.0,65213.0,0.673528]
[1718913874022,0.026,65216.0,65213.0,0.673528]
[1718913874763,0.026,65216.0,65213.0,0.674528]
[1718913875156,0.026,65216.0,65213.0,0.673528]
[1718913875363,0.003,65216.0,65213.0,0.673528]
[1718913875539,0.006,65216.0,65213.0,0.673528]
[1718913875752,0.006,65216.0,65214.0,0.1094]
[1718913876419,0.006,65216.0,65215.0,0.0883]
[1718913876624,0.006,65216.0,65215.0,0.10827015]
[1718913876835,0.003,65216.0,65215.0,0.10827015]
[1718913877043,0.003,65216.0,65215.0,0.28566]
[1718913877044,0.14112785,65216.0,65215.0,0.28566]
[1718913877280,0.003,65216.0,65215.0,0.28566]
[1718913877476,0.13812785,65219.0,65218.0,0.2]
[1718913877619,0.13812785,65219.0,65218.0,0.28566]
[1718913877830,0.03648118,65223.0,65222.0,0.01997015]
[1718913877985,0.03648118,65223.0,65222.0,0.13167015]
[1718913881173,0.03648118,65223.0,65222.0,0.13267015]
[1718913881508,0.03648118,65223.0,65222.0,0.13167015]
[1718913881948,0.03648118,65223.0,65222.0,0.13367015]
[1718913882303,0.03648118,65223.0,65222.0,0.20036]
[1718913882501,0.03648118,65223.0,65222.0,0.19936]
[1718913882985,0.03648118,65223.0,65222.0,0.20136]
[1718913883130,0.03648118,65223.0,65222.0,0.29496]
[1718913883927,0.03648118,65223.0,65222.0,0.29296]
[1718913883928,0.17456832,65223.0,65222.0,0.29296]
[1718913884172,0.03648118,65223.0,65222.0,0.29296]
[1718913884376,0.03648118,65223.0,65222.0,0.29496]
[1718913890977,0.00086,65223.0,65222.0,0.53483401]
[1718913891184,0.0698552,65223.0,65222.0,0.52483401]
[1718913891359,0.00086,65223.0,65222.0,0.53483401]
[1718913891559,0.00086,65223.0,65222.0,0.59953401]
[1718913892184,0.00086,65223.0,65222.0,0.59753401]
[1718913892386,0.00086,65223.0,65222.0,0.60753401]
[1718913893315,0.00086,65223.0,65222.0,0.60553401]
[1718913893667,0.00086,65223.0,65222.0,0.62053401]
[1718913894024,0.00086,65223.0,65222.0,0.60253401]
[1718913894237,0.00086,65223.0,65222.0,0.60953401]
[1718913894377,0.00086,65223.0,65222.0,0.61953401]
[1718913894601,0.00086,65223.0,65222.0,0.63353401]
[1718913895833,0.00086,65223.0,65222.0,0.62353401]
[1718913896510,0.00086,65223.0,65222.0,0.63353401]
[1718913902061,0.00086,65223.0,65222.0,1.30696901]
[1718913903529,0.00086,65223.0,65222.0,1.23226901]
[1718913903744,0.00086,65223.0,65222.0,1.22226901]
[1718913904268,0.00086,65223.0,65222.0,1.29696901]
[1718913904615,0.00086,65223.0,65222.0,1.22226901]
[1718913904820,0.00067546,65223.0,65222.0,1.22226901]
[1718913906238,0.00067546,65223.0,65222.0,1.19426901]
[1718913906649,0.00067546,65223.0,65222.0,1.22226901]
[1718913907105,0.00067546,65223.0,65222.0,1.20826901]
[1718913907670,0.00067546,65223.0,65222.0,1.22226901]
[1718913914114,0.00067546,65223.0,65222.0,1.23226901]
[1718913916069,0.00067546,65223.0,65222.0,1.21826901]
[1718913916483,0.00067546,65223.0,65222.0,1.23226901]
[1718913916689,0.00067546,65223.0,65222.0,1.21826901]
[1718913917517,0.00067546,65223.0,65222.0,1.23226901]
[1718913920852,0.00067546,65223.0,65222.0,1.30696901]
[1718913922976,0.00067546,65223.0,65222.0,1.30791501]
[1718913923625,0.10045428,65238.0,65222.0,1.30791501]
[1718913923626,0.00861,65238.0,65237.0,0.01]
[1718913923856,0.00861,65238.0,65237.0,0.5567313]
[1718913924086,0.00861,65238.0,65237.0,0.61413401]
[1718913926501,0.00861,65238.0,65237.0,0.62313401]
[1718913926710,0.00861,65238.0,65237.0,0.63713401]
[1718913926906,0.00861,65238.0,65237.0,0.62313401]
[1718913927153,0.00861,65238.0,65237.0,0.61413401]
[1718913927507,0.00861,65238.0,65237.0,0.64213401]
[1718913930175,0.02704602,65264.0,65263.0,0.34940274]
[1718913930381,0.00862,65266.0,65265.0,0.16297289]
[1718913930588,0.00862,65266.0,65265.0,0.31553401]
[1718913930803,0.11782,65266.0,65265.0,0.07731289]
[1718913931440,0.11782,65266.0,65265.0,0.17198304]
[1718913931588,0.11782,65266.0,65265.0,0.15201289]
[1718913931792,0.11282,65266.0,65265.0,0.15201289]
[1718913932006,0.11786144,65266.0,65265.0,0.17798304]
[1718913932595,0.11786144,65266.0,65265.0,0.15801289]
[1718913933191,0.11786144,65266.0,65265.0,0.22370274]
[1718913933316,0.11786144,65266.0,65265.0,0.24367289]
[1718913933719,0.11786144,65266.0,65265.0,0.24667289]
[1718913934233,0.11786144,65266.0,65265.0,0.24367289]
[1718913934458,0.11786144,65266.0,65265.0,0.24867289]
[1718913934831,0.00866144,65266.0,65265.0,0.24867289]
[1718913939138,0.00862,65277.0,65276.0,0.08566]
[1718913939340,0.00862,65277.0,65276.0,0.71183401]
[1718913939557,0.00862,65277.0,65276.0,0.80183401]
[1718913939705,0.00862,65277.0,65276.0,0.81183401]
[1718913940532,0.00862,65277.0,65276.0,0.82583401]
[1718913940875,0.00862,65277.0,65276.0,0.81183401]
[1718913941246,0.00862,65277.0,65276.0,0.83983401]
[1718913941479,0.00862,65277.0,65276.0,0.95133401]
[1718913941839,0.00862,65277.0,65276.0,0.93733401]
[1718913942681,0.00862,65277.0,65276.0,0.92333401]
[1718913943062,0.00862,65277.0,65276.0,0.93733401]
[1718913943281,0.00862,65277.0,65276.0,0.95133401]
[1718913943454,0.00862,65277.0,65276.0,0.93733401]
[1718913943704,0.00862,65277.0,65276.0,0.92333401]
[1718913943905,0.00862,65277.0,65276.0,0.95133401]
[1718913944113,0.00862,65277.0,65276.0,0.93733401]
[1718913944317,0.00862,65277.0,65276.0,0.92333401]
[1718913944514,0.00862,65277.0,65276.0,0.93733401]
[1718913945134,0.00862,65277.0,65276.0,0.95133401]
[1718913946615,0.00862,65277.0,65276.0,0.92333401]
[1718913946950,0.00862,65277.0,65276.0,0.95133401]
[1718913947365,0.00862,65277.0,65276.0,0.93733401]
[1718913947838,0.00862,65277.0,65276.0,0.95133401]
[1718913949060,0.00862,65277.0,65276.0,0.94133401]
[1718913949212,0.00862,65277.0,65276.0,0.95133401]
[1718913950135,0.00862,65277.0,65276.0,0.75413401]
[1718913950339,0.00862,65277.0,65276.0,0.84413401]
[1718913950889,0.00862,65277.0,65276.0,0.83013401]
[1718913951060,0.00862,65277.0,65276.0,0.84013401]
[1718913951293,0.00862,65277.0,65276.0,0.85413401]
[1718913952537,0.00862,65277.0,65276.0,0.84013401]
[1718913952748,0.00862,65277.0,65276.0,0.82613401]
[1718913952954,0.00862,65277.0,65276.0,0.74013401]
[1718913953123,0.00862,65277.0,65276.0,0.85413401]
[1718913953561,0.00862,65277.0,65276.0,0.84013401]
[1718913953714,0.00862,65277.0,65276.0,0.85413401]
[1718913957892,0.00862,65277.0,65276.0,0.75413401]
[1718913958049,0.00862,65277.0,65276.0,0.85413401]
[1718913958448,0.00862,65277.0,65276.0,0.98145994]
[1718913958971,0.00862,65277.0,65276.0,0.97145994]
[1718913959181,0.00862,65277.0,65276.0,0.98145994]
[1718913960966,0.00862,65277.0,65276.0,0.98146074]
[1718913961179,0.00862,65277.0,65276.0,0.63709059]
[1718913961380,0.00862,65277.0,65276.0,0.10531289]
[1718913961381,0.12872,65277.0,65276.0,0.10531289]
[1718913961548,0.15094417,65277.0,65276.0,0.028]
[1718913961857,0.15645362,65277.0,65276.0,0.028]
[1718913962074,0.15645362,65277.0,65276.0,0.014]
[1718913962273,0.15645362,65277.0,65276.0,0.0137]
[1718913962531,0.15645362,65277.0,65276.0,0.014]
[1718913963193,0.15645362,65277.0,65276.0,0.001]
[1718913963368,0.13422945,65277.0,65276.0,0.001]
[1718913963567,0.13522945,65277.0,65276.0,0.002]
[1718913963702,0.13522945,65277.0,65274.0,0.07731289]
[1718913963909,0.0873,65275.0,65274.0,0.07731289]
[1718913964154,0.0873,65275.0,65274.0,0.14300274]
[1718913964355,0.09279435,65275.0,65274.0,0.14300274]
[1718913965763,0.09279435,65275.0,65274.0,0.14400274]
[1718913966177,0.09379435,65275.0,65274.0,0.14300274]
[1718913966414,0.09379435,65275.0,65274.0,0.13532274]
[1718913967650,0.09379435,65275.0,65274.0,0.15529289]
[1718913968565,0.09379435,65275.0,65274.0,0.13532274]
[1718913969395,0.09279435,65275.0,65274.0,0.13532274]
[1718913969773,0.09379435,65275.0,65274.0,0.13532274]
[1718913970304,0.09379435,65275.0,65274.0,0.13632274]
[1718913971050,0.08611435,65275.0,65274.0,0.13632274]
[1718913972054,0.00649435,65275.0,65274.0,0.15629289]
[1718913972460,0.001,65275.0,65274.0,0.30885401]
[1718913975246,0.00862,65277.0,65276.0,0.13532274]
[1718913975655,0.00862,65277.0,65276.0,0.73615401]
[1718913976745,0.1215465,65298.0,65297.0,0.06628489]
[1718913976976,0.1215465,65298.0,65297.0,0.06405289]
[1718913976977,0.14785439,65298.0,65297.0,0.06405289]
[1718913977196,0.15337604,65298.0,65297.0,0.06405289]
[1718913977735,0.06169603,65298.0,65297.0,0.06405289]
[1718913978355,0.15337604,65298.0,65297.0,0.06405289]
[1718913979210,0.15337604,65298.0,65297.0,0.06505289]
[1718913979353,0.06169603,65298.0,65297.0,0.06605289]
[1718913980298,0.17632153,65298.0,65297.0,0.06605289]
[1718913980503,0.06169603,65298.0,65297.0,0.06605289]
[1718913984240,0.19928215,65298.0,65297.0,0.06605289]
[1718913984863,0.1993516,65298.0,65297.0,0.06605289]
[1718913986290,0.1993516,65298.0,65297.0,0.06699889]
[1718913986448,0.2002116,65298.0,65297.0,0.06699889]
[1718913986657,0.06255603,65298.0,65297.0,0.06699889]
[1718913996835,0.13705603,65298.0,65297.0,0.06699889]
[1718913998500,0.10713262,65298.0,65297.0,0.06699889]
[1718913998903,0.03263262,65298.0,65297.0,0.06699889]
[1718914005698,0.23742929,65298.0,65297.0,0.002946]
[1718914005923,0.44269041,65298.0,65297.0,0.002946]
[1718914007565,0.59754112,65298.0,65297.0,0.002946]
[1718914008442,0.59754112,65298.0,65291.0,0.06405289]
[1718914008443,0.0297,65297.0,65291.0,0.06405289]
[1718914008648,0.0745,65292.0,65291.0,0.06405289]
[1718914008846,0.09349401,65297.0,65291.0,0.06405289]
[1718914008998,0.023,65296.0,65291.0,0.06405289]
[1718914009199,0.11064888,65296.0,65291.0,0.06405289]
[1718914009823,0.0745,65292.0,65291.0,0.06505289]
[1718914010097,0.3072573,65298.0,65291.0,0.06505289]
[1718914010314,0.08419064,65292.0,65291.0,0.06505289]
[1718914010460,0.04128795,65297.0,65291.0,0.06505289]
[1718914010660,0.08418107,65292.0,65291.0,0.06605289]
[1718914010868,0.0745,65292.0,65291.0,0.06505289]
[1718914011076,0.08419067,65292.0,65291.0,0.06505289]
[1718914011275,0.08419067,65292.0,65291.0,0.001]
[1718914011473,0.08419067,65292.0,65291.0,0.06505289]
[1718914011675,0.09673853,65292.0,65291.0,0.06505289]
[1718914011977,0.09673853,65292.0,65288.0,0.06405289]
[1718914012172,0.02223853,65292.0,65291.0,0.06405289]
[1718914012504,0.08419067,65292.0,65291.0,0.06405289]
[1718914012882,0.08419067,65292.0,65288.0,0.06405289]
[1718914013081,0.21227346,65289.0,65288.0,0.06405289]
[1718914013281,0.10647749,65289.0,65288.0,0.06405289]
[1718914013541,0.08418108,65289.0,65283.0,0.06405289]
[1718914013681,0.0745,65284.0,65283.0,0.06405289]
[1718914013883,0.0841811,65284.0,65283.0,0.06405289]
[1718914014771,0.10637911,65284.0,65283.0,0.06405289]
[1718914014928,0.10737911,65284.0,65283.0,0.06405289]
[1718914015697,0.0851811,65284.0,65283.0,0.06405289]
[1718914017563,0.22304249,65284.0,65283.0,0.73685889]
[1718914018122,0.14854249,65284.0,65283.0,0.73780489]
[1718914019398,0.0106811,65284.0,65283.0,0.73780489]
[1718914019610,0.2864631,65284.0,65283.0,0.73780489]
[1718914019781,0.276782,65284.0,65283.0,0.73780489]
[1718914019974,0.28484159,65284.0,65283.0,0.73780489]
[1718914020539,0.14694726,65284.0,65283.0,0.73780489]
[1718914022047,0.00905959,65284.0,65283.0,0.73780489]
[1718914022239,0.14694063,65284.0,65283.0,0.73780489]
[1718914022396,0.13888104,65284.0,65283.0,0.73780489]
[1718914022576,0.14694063,65284.0,65283.0,0.73780489]
[1718914023163,0.00905959,65284.0,65283.0,0.73780489]
[1718914023374,0.001,65284.0,65283.0,0.73780489]
[1718914025281,0.001,65284.0,65283.0,0.75777504]
[1718914025511,0.001,65284.0,65283.0,0.97057504]
[1718914026658,0.001,65284.0,65283.0,0.29776904]
[1718914026970,0.13785898,65287.0,65284.0,0.08402304]
[1718914027174,0.13785898,65287.0,65286.0,0.14971289]
[1718914027386,0.02537906,65289.0,65288.0,0.08402304]
[1718914027537,0.02537906,65289.0,65288.0,0.14971289]
[1718914027743,0.13785898,65293.0,65290.0,0.08402304]
[1718914028586,0.13785898,65293.0,65292.0,0.01997015]
[1718914028748,0.13785898,65294.0,65292.0,0.01997015]
[1718914029135,0.13785898,65294.0,65291.0,0.2192]
[1718914029136,0.13783822,65294.0,65291.0,0.2192]
[1718914030837,0.13783822,65294.0,65292.0,0.01997015]
[1718914031048,0.13783822,65294.0,65291.0,0.28325289]
[1718914031251,0.001,65293.0,65292.0,0.01997015]
[1718914031454,0.13783822,65294.0,65292.0,0.01997015]
[1718914031804,0.13883822,65294.0,65292.0,0.01997015]
[1718914032108,0.13883822,65294.0,65293.0,0.01997015]
[1718914032364,0.13883822,65294.0,65293.0,0.07634304]
[1718914032866,0.13783822,65294.0,65293.0,0.07634304]
[1718914033222,0.02661032,65298.0,65294.0,0.06405289]
[1718914034851,0.02761032,65298.0,65294.0,0.06505289]
[1718914035078,0.13783425,65296.0,65294.0,0.06505289]
[1718914035453,0.13783425,65296.0,65294.0,0.06605289]
[1718914036214,0.137835,65296.0,65294.0,0.06405289]
[1718914036427,0.137835,65296.0,65294.0,0.06505289]
[1718914036757,0.137835,65295.0,65294.0,0.06505289]
[1718914037567,0.137835,65296.0,65294.0,0.06505289]
[1718914037787,0.138835,65296.0,65294.0,0.06605289]
[1718914038215,0.138835,65296.0,65294.0,0.06505289]
[1718914038443,0.137835,65295.0,65294.0,0.06505289]
[1718914038620,0.02661032,65298.0,65294.0,0.06405289]
[1718914038831,0.13783955,65296.0,65295.0,0.01229015]
[1718914039034,0.13783955,65296.0,65294.0,0.06405289]
[1718914039035,0.13783776,65297.0,65294.0,0.07634304]
[1718914039236,0.02661032,65298.0,65294.0,0.07634304]
[1718914039237,0.13783776,65296.0,65294.0,0.06405289]
[1718914039564,0.13783776,65295.0,65294.0,0.06405289]
[1718914039771,0.13783776,65295.0,65294.0,0.06505289]
[1718914040102,0.86365459,65300.0,65294.0,0.06605289]
[1718914040507,0.0745,65298.0,65294.0,0.06605289]